fUST/lending_fUST_20241216
["ID","MTS","AMOUNT","RATE_DAILY","PERIOD"]
[345470731,1734278480646,165.644366,0.00013973,2]
[345470732,1734278760912,316.0,0.000254,120]
[345470775,1734279032339,-300.0,0.000255,2]
[345470776,1734279032349,-478.44134028,0.00026458,2]
[345470777,1734279032358,-172.968859,0.00026811,2]
[345470778,1734279032368,-660.0,0.000271,2]
[345470779,1734279032377,-171.393845,0.00027153,2]
[345470780,1734279032387,-300.0,0.00027636,2]
[345470781,1734279032396,-4590.1652843,0.00027637,2]
[345470782,1734279032406,-300.0,0.00027938,2]
[345470783,1734279032415,-151.0,0.00027939,2]
[345470784,1734279032424,-300.0,0.00028,120]
[345470785,1734279032434,-162.6,0.000282,2]
[345470786,1734279032443,-6754.54016665,0.000284,4]
[345470787,1734279032456,-762.84243801,0.000284,4]
[345470839,1734279038244,-2482.61739534,0.000284,4]
[345470841,1734279038254,-153.48,0.000284,31]
[345470843,1734279038263,-351.54163735,0.0002849,2]
[345470845,1734279038273,-3103.16,0.0002849,2]
[345470847,1734279038282,-500.0,0.00028491,7]
[345470849,1734279038292,-500.0,0.00028491,7]
[345470851,1734279038301,-548.97,0.00028491,7]
[345470853,1734279038311,-500.0,0.00028491,7]
[345470855,1734279038320,-892.76,0.000285,2]
[345470857,1734279038329,-403.646,0.0002855,2]
[345470859,1734279038338,-3103.16,0.00028764,2]
[345470861,1734279038347,-500.0,0.00028765,7]
[345470863,1734279038356,-500.0,0.00028765,7]
[345470865,1734279038366,-548.97,0.00028765,7]
[345470867,1734279038375,-500.0,0.00028765,7]
[345470869,1734279038384,-153.48,0.000288,31]
[345470871,1734279038393,-153.48,0.000288,31]
[345470873,1734279038402,-500.0,0.00028999,7]
[345470875,1734279038411,-500.0,0.00028999,7]
[345470877,1734279038421,-10000.0,0.00029,10]
[345470879,1734279038431,-878.0,0.00029,3]
[345470881,1734279038441,-402.546,0.00029,3]
[345470883,1734279038450,-303.13943323,0.00029,2]
[345470884,1734279038461,-3103.16,0.00029038,2]
[345470886,1734279038470,-500.0,0.00029039,7]
[345470888,1734279038479,-500.0,0.00029039,7]
[345470890,1734279038489,-548.97,0.00029039,7]
[345470893,1734279038499,-500.0,0.00029039,7]
[345470895,1734279038509,-300.0,0.000292,2]
[345470897,1734279038518,-153.48,0.000292,31]
[345470898,1734279038528,-153.48,0.000292,31]
[345470900,1734279038538,-500.0,0.00029273,7]
[345470903,1734279038547,-500.0,0.00029273,7]
[345470905,1734279038557,-303.13943323,0.0002929,2]
[345470907,1734279038566,-3103.16,0.00029312,2]
[345470909,1734279038576,-500.0,0.00029313,7]
[345470910,1734279038585,-500.0,0.00029313,7]
[345470912,1734279038595,-548.97,0.00029313,7]
[345470914,1734279038604,-500.0,0.00029313,7]
[345470916,1734279038614,-165.644366,0.00029349,2]
[345470919,1734279038624,-500.0,0.00029547,7]
[345470921,1734279038634,-303.13943323,0.0002958,2]
[345470923,1734279038643,-3103.16,0.00029586,2]
[345470924,1734279038653,-582.92701973,0.00029587,7]
[345470926,1734279038662,-500.0,0.00029587,7]
[345470928,1734279038672,-548.97,0.00029587,7]
[345470930,1734279038682,-500.0,0.00029587,7]
[345470932,1734279038691,-153.48,0.000297,31]
[345470934,1734279038700,-153.48,0.000297,31]
[345470937,1734279038712,-10297.95885299,0.00029741,2]
[345470938,1734279038721,-500.0,0.00029821,7]
[345470941,1734279038731,-3103.16,0.0002986,2]
[345470943,1734279038740,-500.0,0.00029861,7]
[345470945,1734279038749,-548.97,0.00029861,7]
[345470947,1734279038759,-500.0,0.00029861,7]
[345470948,1734279038768,-300.91492905,0.0002987,2]
[345470950,1734279038777,-500.0,0.00029898,7]
[345470952,1734279038787,-22943.19172663,0.00029899,8]
[345470954,1734279038797,-2220.4332033,0.00029946,2]
[345470956,1734279038807,-2000.0,0.0003,2]
[345470958,1734279038817,-10000.0,0.0003,15]
[345470961,1734279038828,-300.0,0.0003,120]
[345470963,1734279038838,-218.0,0.0003,2]
[345470965,1734279038847,-160.0,0.00030025,5]
[345470966,1734279038857,-606.04514898,0.00030037,2]
[345470968,1734279038866,-354.44240978,0.00030045,2]
[345470970,1734279038876,-500.0,0.00030045,2]
[345470972,1734279038886,-316.94489142,0.00030045,2]
[345470974,1734279038901,-399.75195783,0.00030045,2]
[345470977,1734279038911,-201.56078784,0.00030045,2]
[345470978,1734279038920,-500.0,0.00030045,2]
[345470980,1734279038930,-153.08547817,0.00030045,2]
[345470982,1734279038941,-500.0,0.00030045,2]
[345470984,1734279038950,-500.0,0.00030045,2]
[345470986,1734279038961,-159.32393815,0.00030045,2]
[345470989,1734279038974,-500.0,0.00030045,2]
[345470991,1734279038984,-439.23268722,0.00030045,2]
[345470993,1734279038993,-500.0,0.00030045,2]
[345470995,1734279039003,-358.07280798,0.00030045,2]
[345470997,1734279039013,-500.0,0.00030045,2]
[345470999,1734279039022,-500.0,0.00030045,2]
[345471001,1734279039031,-500.0,0.00030045,2]
[345471003,1734279039041,-500.0,0.00030045,2]
[345471005,1734279039050,-500.0,0.00030045,2]
[345471007,1734279039060,-500.0,0.00030045,2]
[345471009,1734279039069,-500.0,0.00030045,2]
[345471011,1734279039079,-500.0,0.00030045,2]
[345471013,1734279039088,-500.0,0.00030045,2]
[345471015,1734279039098,-500.0,0.00030045,2]
[345471017,1734279039107,-292.55541797,0.00030045,2]
[345471019,1734279039116,-500.0,0.00030045,2]
[345471021,1734279039126,-500.0,0.00030045,2]
[345471023,1734279039135,-500.0,0.00030045,2]
[345471025,1734279039145,-500.0,0.00030045,2]
[345471027,1734279039155,-500.0,0.00030045,2]
[345471029,1734279039165,-500.0,0.00030045,2]
[345471031,1734279039174,-500.0,0.00030045,2]
[345471033,1734279039184,-294.83476601,0.00030045,2]
[345471048,1734279039314,-500.0,0.00030045,2]
[345471051,1734279039325,-500.0,0.00030045,2]
[345471053,1734279039334,-500.0,0.00030045,2]
[345471055,1734279039344,-500.0,0.00030045,2]
[345471057,1734279039353,-151.0,0.00030046,7]
[345471059,1734279039363,-151.0,0.00030046,7]
[345471061,1734279039372,-151.0,0.00030046,7]
[345471063,1734279039381,-151.0,0.00030046,7]
[345471065,1734279039390,-4308.54305417,0.00030046,2]
[345471067,1734279039400,-54118.2280847,0.00030046,2]
[345471069,1734279039411,-860925.1589537,0.00030046,10]
[345471071,1734279039423,-74361.86600277,0.00030046,10]
[345471074,1734279039434,-671.16,0.00030046,10]
[345471171,1734279040348,-22943.81805889,0.00030046,10]
[345471173,1734279040360,-25535.0,0.00030046,10]
[345471367,1734279043397,-1355.07,0.00030046,10]
[345471400,1734279046187,-290630.65866815,0.00030046,10]
[345471730,1734279477370,160.242006,0.00013973,2]
[345471737,1734280158824,482.617,0.00024,30]
[345471817,1734280232534,-1131.47665408,0.00024164,6]
[345471820,1734280232546,-160.242006,0.00025156,2]
[345471822,1734280232558,-300.0,0.00025499,2]
[345471824,1734280232569,-300.0,0.00025499,2]
[345471826,1734280232579,-300.0,0.000255,2]
[345471827,1734280232590,-300.0,0.000255,2]
[345471829,1734280232600,-300.0,0.000255,2]
[345471831,1734280232611,-300.0,0.000255,2]
[345471833,1734280232620,-300.0,0.000255,2]
[345471835,1734280232630,-300.0,0.000255,2]
[345471837,1734280232639,-300.0,0.000255,2]
[345471839,1734280232650,-300.0,0.000255,2]
[345471841,1734280232660,-300.0,0.000255,2]
[345471844,1734280232671,-300.0,0.000255,2]
[345471846,1734280232682,-172.968859,0.00026452,2]
[345471848,1734280232694,-15205.38641603,0.000265,2]
[345471851,1734280232710,-9342.22175714,0.000265,2]
[345471930,1734280238511,-259.67769434,0.00026352,2]
[345471932,1734280238524,-158559.4793367,0.000265,2]
[345471934,1734280238534,-444.08664066,0.000266,2]
[345471936,1734280238544,-559.12903357,0.00026673,2]
[345471938,1734280238554,-501.95779229,0.00026673,2]
[345471940,1734280238565,-500.0,0.00026699,2]
[345471942,1734280238575,-201.56078784,0.00026699,2]
[345471945,1734280238587,-500.0,0.00026699,2]
[345471947,1734280238600,-500.0,0.00026699,2]
[345471949,1734280238612,-500.0,0.00026699,2]
[345471951,1734280238623,-159.32393815,0.00026699,2]
[345471953,1734280238635,-500.0,0.00026699,2]
[345471955,1734280238646,-500.0,0.00026699,2]
[345471957,1734280238656,-500.0,0.00026699,2]
[345471959,1734280238666,-500.0,0.00026699,2]
[345471962,1734280238677,-439.23268722,0.00026699,2]
[345471964,1734280238687,-153.08547817,0.00026699,2]
[345471966,1734280238697,-358.07280798,0.00026699,2]
[345471968,1734280238708,-294.83476601,0.00026699,2]
[345471970,1734280238719,-500.0,0.00026699,2]
[345471972,1734280238730,-500.0,0.00026699,2]
[345471974,1734280238740,-500.0,0.00026699,2]
[345471976,1734280238751,-500.0,0.00026699,2]
[345471978,1734280238761,-500.0,0.00026699,2]
[345471980,1734280238773,-500.0,0.00026699,2]
[345471983,1734280238783,-500.0,0.00026699,2]
[345471984,1734280238793,-500.0,0.00026699,2]
[345471987,1734280238803,-500.0,0.00026699,2]
[345471989,1734280238814,-500.0,0.00026699,2]
[345471991,1734280238824,-500.0,0.00026699,2]
[345471993,1734280238835,-500.0,0.00026699,2]
[345471995,1734280238846,-500.0,0.00026699,2]
[345471997,1734280238857,-500.0,0.00026699,2]
[345471999,1734280238868,-500.0,0.00026699,2]
[345472002,1734280238879,-500.0,0.00026699,2]
[345472004,1734280238893,-292.55541797,0.00026699,2]
[345472006,1734280238903,-500.0,0.00026699,2]
[345472008,1734280238914,-500.0,0.00026699,2]
[345472025,1734280239075,-390093.52989361,0.000267,7]
[345472028,1734280239095,-538.08,0.000267,14]
[345472030,1734280239107,-444.08664066,0.0002691,2]
[345472033,1734280239118,-36018.05686626,0.00027,2]
[345472035,1734280239129,-171.393845,0.00027104,2]
[345472037,1734280239140,-6324.0,0.000272,2]
[345472039,1734280239151,-444.08664066,0.0002722,2]
[345472041,1734280239161,-503.8925272,0.000273,2]
[345472043,1734280239171,-444.08664066,0.00027529,2]
[345472045,1734280239182,-420.0,0.0002761,2]
[345472047,1734280239192,-500.0,0.00027799,2]
[345472049,1734280239203,-354.44240978,0.00027799,2]
[345472051,1734280239213,-399.75195783,0.00027799,2]
[345472053,1734280239223,-316.94489142,0.00027799,2]
[345472056,1734280239234,-220853.05420347,0.000278,6]
[345472057,1734280239244,-444.08664066,0.00027839,2]
[345472058,1734280239254,-187.4405665,0.00027939,2]
[345472059,1734280239263,-450.0,0.00028,2]
[345472060,1734280239274,-162.6,0.000282,2]
[345472061,1734280239288,-153.48,0.000284,31]
[345472062,1734280239298,-500.0,0.0002849,7]
[345472063,1734280239309,-505.03743176,0.0002849,7]
[345472064,1734280239319,-892.76,0.000285,2]
[345472065,1734280239331,-2000.0,0.000285,3]
[345472066,1734280239341,-403.448,0.0002855,2]
[345472067,1734280239351,-153.48,0.000288,31]
[345472068,1734280239361,-153.48,0.000288,31]
[345472069,1734280239372,-500.0,0.00028869,7]
[345472070,1734280239383,-546.29,0.00028869,7]
[345472071,1734280239393,-500.0,0.00028869,7]
[345472073,1734280239403,-500.0,0.00028869,7]
[345472075,1734280239413,-300.89,0.00028869,7]
[345472077,1734280239423,-500.0,0.00028869,7]
[345472079,1734280239433,-500.0,0.00028869,7]
[345472081,1734280239442,-587.71191139,0.00028869,7]
[345472083,1734280239452,-500.0,0.00028869,7]
[345472085,1734280239461,-351.54163735,0.00028869,2]
[345472087,1734280239471,-3103.16,0.00028869,2]
[345472089,1734280239481,-500.0,0.0002887,7]
[345472091,1734280239491,-500.0,0.0002887,7]
[345472093,1734280239501,-500.0,0.0002887,7]
[345472095,1734280239514,-500.0,0.0002887,7]
[345472097,1734280239525,-501.81258471,0.0002887,7]
[345472099,1734280239534,-531.39624037,0.0002887,7]
[345472101,1734280239544,-500.0,0.0002887,7]
[345472103,1734280239554,-500.0,0.0002887,7]
[345472104,1734280239564,-500.0,0.0002887,7]
[345472106,1734280239573,-500.0,0.0002887,7]
[345472108,1734280239583,-500.0,0.0002887,7]
[345472110,1734280239593,-500.0,0.0002887,7]
[345472112,1734280239602,-7532.781,0.00028871,2]
[345472114,1734280239611,-500.0,0.0002888,5]
[345472116,1734280239621,-500.0,0.00028999,7]
[345472118,1734280239630,-303.14246574,0.00029,2]
[345472120,1734280239640,-500.0,0.00029143,7]
[345472122,1734280239649,-3103.16,0.00029143,2]
[345472125,1734280239659,-500.0,0.00029144,7]
[345472127,1734280239668,-500.0,0.00029144,7]
[345472128,1734280239677,-300.0,0.000292,2]
[345472131,1734280239687,-153.48,0.000292,31]
[345472132,1734280239697,-153.48,0.000292,31]
[345472134,1734280239707,-303.14246574,0.0002929,2]
[345472137,1734280239718,-538.08,0.000294,30]
[345472139,1734280239728,-500.0,0.00029417,7]
[345472141,1734280239738,-3103.16,0.00029417,2]
[345472143,1734280239747,-500.0,0.00029418,7]
[345472144,1734280239756,-500.0,0.00029418,7]
[345472147,1734280239767,-303.14246574,0.0002958,2]
[345472149,1734280239779,-402.566,0.0002959,7]
[345472151,1734280239789,-500.0,0.00029691,7]
[345472153,1734280239798,-3103.16,0.00029691,2]
[345472155,1734280239808,-500.0,0.00029692,7]
[345472157,1734280239818,-500.0,0.00029692,7]
[345472159,1734280239828,-153.48,0.000297,31]
[345472161,1734280239837,-153.48,0.000297,31]
[345472163,1734280239847,-10297.95885299,0.00029725,5]
[345472165,1734280239856,-22943.19172663,0.00029799,8]
[345472167,1734280239866,-303.12427155,0.00029836,2]
[345472169,1734280239876,-500.0,0.0002986,7]
[345472171,1734280239886,-500.0,0.0002986,7]
[345472173,1734280239896,-330.99090187,0.0002986,7]
[345472175,1734280239905,-500.0,0.0002986,7]
[345472177,1734280239915,-500.0,0.0002986,7]
[345472179,1734280239925,-500.0,0.0002986,7]
[345472181,1734280239934,-500.0,0.0002986,7]
[345472183,1734280239944,-500.0,0.0002986,7]
[345472185,1734280239953,-500.0,0.0002986,7]
[345472187,1734280239963,-500.0,0.0002986,7]
[345472189,1734280239973,-413.26124567,0.0002986,7]
[345472191,1734280239982,-663.21,0.0002986,7]
[345472193,1734280239991,-500.0,0.0002986,7]
[345472195,1734280240001,-500.0,0.0002986,7]
[345472197,1734280240010,-500.0,0.0002986,7]
[345472199,1734280240022,-512.94,0.0002986,7]
[345472201,1734280240031,-500.0,0.0002986,7]
[345472203,1734280240041,-500.0,0.0002986,7]
[345472205,1734280240050,-500.0,0.0002986,7]
[345472207,1734280240061,-500.0,0.0002986,7]
[345472209,1734280240071,-500.0,0.0002986,7]
[345472211,1734280240080,-500.0,0.0002986,7]
[345472213,1734280240089,-303.14246574,0.0002987,2]
[345472215,1734280240100,-587.0,0.00029895,2]
[345472217,1734280240110,-500.0,0.00029965,7]
[345472219,1734280240120,-3103.16,0.00029965,2]
[345472221,1734280240131,-500.0,0.00029966,7]
[345472224,1734280240141,-500.0,0.00029966,7]
[345472225,1734280240150,-1999.999999,0.0003,2]
[345472228,1734280240160,-2000.0,0.0003,2]
[345472230,1734280240170,-151.0,0.0003,10]
[345472232,1734280240179,-151.0,0.0003,19]
[345472233,1734280240189,-10000.0,0.0003,15]
[345472236,1734280240199,-999.79380542,0.0003,30]
[345472238,1734280240209,-222.0,0.0003,2]
[345472240,1734280240220,-160.0,0.00030025,5]
[345472242,1734280240230,-13237.47150717,0.00030042,7]
[345472244,1734280240240,-432.90872088,0.00030044,7]
[345472246,1734280240250,-249.3955714,0.00030044,7]
[345472248,1734280240259,-423.94861862,0.00030044,7]
[345472250,1734280240271,-500.0,0.00030044,7]
[345472252,1734280240284,-397.3,0.00030044,7]
[345472254,1734280240295,-500.0,0.00030044,7]
[345472256,1734280240304,-624.16598017,0.00030044,7]
[345472258,1734280240314,-170.52537742,0.00030044,7]
[345472260,1734280240325,-500.0,0.00030044,7]
[345472262,1734280240334,-500.0,0.00030044,7]
[345472264,1734280240345,-500.0,0.00030044,7]
[345472266,1734280240354,-500.0,0.00030044,7]
[345472268,1734280240364,-466.66836363,0.00030044,7]
[345472270,1734280240374,-500.0,0.00030044,7]
[345472272,1734280240384,-500.0,0.00030044,7]
[345472274,1734280240394,-604.5,0.00030044,7]
[345472276,1734280240403,-371.52698204,0.00030044,7]
[345472278,1734280240413,-500.0,0.00030044,7]
[345472280,1734280240422,-500.0,0.00030044,7]
[345472282,1734280240432,-500.0,0.00030044,2]
[345472284,1734280240441,-500.0,0.00030044,7]
[345472286,1734280240451,-500.0,0.00030044,7]
[345472288,1734280240460,-500.0,0.00030044,7]
[345472290,1734280240469,-507.30702761,0.00030044,7]
[345472292,1734280240479,-500.0,0.00030044,7]
[345472294,1734280240489,-500.0,0.00030044,7]
[345472296,1734280240499,-500.0,0.00030044,7]
[345472298,1734280240508,-500.0,0.00030044,7]
[345472300,1734280240519,-483.25,0.00030044,7]
[345472302,1734280240529,-500.0,0.00030044,7]
[345472304,1734280240539,-500.0,0.00030044,7]
[345472306,1734280240549,-500.0,0.00030044,7]
[345472308,1734280240559,-251.0077872,0.00030045,7]
[345472310,1734280240568,-500.0,0.00030045,7]
[345472312,1734280240578,-250.0,0.00030046,10]
[345472314,1734280240587,-156.79,0.00030046,2]
[345472316,1734280240597,-151.0,0.00030047,7]
[345472318,1734280240607,-151.0,0.00030047,7]
[345472320,1734280240616,-151.0,0.00030047,7]
[345472322,1734280240625,-4308.54305417,0.00030047,2]
[345472324,1734280240638,-54118.2280847,0.00030047,2]
[345472326,1734280240647,-52899.68082844,0.00030048,10]
[345472331,1734280240682,-1384.99999819,0.00030048,10]
[345472333,1734280240693,-6907.77691558,0.00030048,10]
[345472335,1734280240705,-6147.780505,0.00030048,10]
[345472914,1734280246527,-259.67769433,0.00026426,2]
[345472916,1734280246544,-265.3544052,0.00027397,7]
[345472918,1734280246554,-46.75315504,0.00030048,10]
[345474085,1734280698352,166.775234,0.00013973,2]
[345474161,1734281432563,-385.52000413,0.00023201,2]
[345474168,1734281432619,-3897.68399294,0.00023201,2]
[345474170,1734281432630,-166.775234,0.00023435,2]
[345474172,1734281432640,-300.0,0.00026864,2]
[345474174,1734281432650,-2499.09992339,0.00026865,2]
[345474733,1734281438502,-10426.48596121,0.00026865,2]
[345474734,1734281438512,-209.34408,0.00027306,2]
[345474735,1734281438522,-432.90872088,0.00027397,7]
[345474736,1734281438532,-249.3955714,0.00027397,7]
[345474737,1734281438541,-423.94861862,0.00027397,7]
[345474738,1734281438551,-500.0,0.00027397,7]
[345474739,1734281438560,-624.16598017,0.00027397,7]
[345474740,1734281438570,-500.0,0.00027397,7]
[345474741,1734281438584,-500.0,0.00027397,7]
[345474742,1734281438595,-500.0,0.00027397,7]
[345474743,1734281438605,-500.0,0.00027397,7]
[345474744,1734281438615,-500.0,0.00027397,7]
[345474746,1734281438624,-466.66836363,0.00027397,7]
[345474747,1734281438633,-500.0,0.00027397,7]
[345474748,1734281438642,-500.0,0.00027397,7]
[345474749,1734281438652,-371.52698204,0.00027397,7]
[345474750,1734281438662,-500.0,0.00027397,7]
[345474751,1734281438671,-500.0,0.00027397,7]
[345474752,1734281438681,-500.0,0.00027397,2]
[345474753,1734281438690,-500.0,0.00027397,7]
[345474754,1734281438699,-500.0,0.00027397,7]
[345474755,1734281438708,-507.30702761,0.00027397,7]
[345474756,1734281438718,-500.0,0.00027397,7]
[345474757,1734281438727,-500.0,0.00027397,7]
[345474758,1734281438736,-500.0,0.00027397,7]
[345474759,1734281438752,-500.0,0.00027397,7]
[345474761,1734281438762,-500.0,0.00027397,7]
[345474763,1734281438771,-483.25,0.00027397,7]
[345474765,1734281438780,-500.0,0.00027397,7]
[345474767,1734281438789,-500.0,0.00027397,7]
[345474769,1734281438799,-500.0,0.00027397,7]
[345474771,1734281438812,-500.0,0.00027397,7]
[345474773,1734281438822,-546.29,0.00027397,7]
[345474775,1734281438831,-300.89,0.00027397,7]
[345474777,1734281438841,-500.0,0.00027397,7]
[345474779,1734281438851,-351.54163735,0.00027397,2]
[345474781,1734281438861,-3103.16,0.00027397,2]
[345474783,1734281438871,-25268.57,0.00027397,7]
[345474785,1734281438883,-500.0,0.0002767,7]
[345474787,1734281438893,-500.0,0.0002767,7]
[345474790,1734281438902,-500.0,0.0002767,7]
[345474792,1734281438912,-500.0,0.0002767,7]
[345474794,1734281438921,-3103.16,0.00027671,2]
[345474796,1734281438931,-21596.33781534,0.00027671,7]
[345474811,1734281439069,-3672.23218466,0.00027671,7]
[345474813,1734281439079,-3103.16,0.00027945,2]
[345474815,1734281439088,-3825.09764534,0.00027945,7]
[345474983,1734281440686,-587.71191139,0.00027397,7]
[345474985,1734281440696,-4508.78808861,0.00027945,7]
[345474987,1734281440708,-16934.68426605,0.00027945,7]
[345474989,1734281440717,-162.6,0.000282,2]
[345474991,1734281440728,-3103.16,0.00028219,2]
[345474993,1734281440738,-25268.57,0.00028219,7]
[345474995,1734281440748,-500.0,0.00028231,7]
[345474997,1734281440758,-500.0,0.00028231,7]
[345474999,1734281440767,-501.81258471,0.00028231,7]
[345475001,1734281440777,-500.0,0.00028231,7]
[345475003,1734281440786,-500.0,0.00028231,7]
[345475005,1734281440795,-500.0,0.00028231,7]
[345475008,1734281440809,-434.5,0.00028341,15]
[345475010,1734281440818,-153.48,0.000284,31]
[345475012,1734281440827,-3103.16,0.00028493,2]
[345475014,1734281440838,-17366.66557425,0.00028493,7]
[345475016,1734281440850,-1609.96346841,0.00028493,7]
[345475286,1734281443926,-1110.0500002,0.00028493,7]
[345475504,1734281446565,-15.63883131,0.00028493,7]
[345475508,1734281446594,-5166.25212583,0.00028493,7]
[345475510,1734281446603,-892.76,0.000285,2]
[345475512,1734281446613,-500.0,0.00028505,7]
[345475514,1734281446622,-403.67,0.0002855,2]
[345475516,1734281446631,-500.0,0.00028767,9]
[345475518,1734281446640,-3103.16,0.00028767,2]
[345475519,1734281446650,-5247.95787416,0.00028767,7]
[345475522,1734281446661,-5903.27,0.00028767,7]
[345478228,1734281660237,157.998641,0.00013973,2]
[345478230,1734281709243,-153.48,0.000288,31]
[345478231,1734281709273,-153.48,0.000288,31]
[345478232,1734281709303,-153.48,0.000292,31]
[345478233,1734281709332,-153.48,0.000292,31]
[345478234,1734281709363,-153.48,0.000297,31]
[345478235,1734281709393,-153.48,0.000297,31]
[345478236,1734281709419,-500.0,0.0003,30]
[345478237,1734281709455,-415.56,0.000301,30]
[345478238,1734281709488,-153.48,0.000301,31]
[345478239,1734281709517,-153.48,0.000301,31]
[345478240,1734281709545,-1000.0,0.00030136,120]
[345478241,1734281709571,-500.0,0.00030136,120]
[345478242,1734281709598,-500.0,0.00030136,120]
[345478243,1734281709624,-500.0,0.00030136,120]
[345478244,1734281709650,-500.0,0.00030136,120]
[345478245,1734281709676,-500.0,0.00030136,120]
[345478246,1734281709700,-545.17387438,0.00030136,120]
[345478247,1734281709727,-2825.61,0.000303,30]
[345478248,1734281709753,-1011.80197945,0.0003041,120]
[345478249,1734281709778,-1000.0,0.00031,120]
[345478250,1734281709803,-500.0,0.00031,120]
[345478251,1734281709829,-1000.0,0.00031,120]
[345478252,1734281709855,-96492.0,0.00031,120]
[345478253,1734281709879,-4997.10787659,0.00031,30]
[345478254,1734281709908,-542.64231289,0.000312,30]
[345478255,1734281709933,-1000.0,0.000315,120]
[345478256,1734281709960,-3000.0,0.00031506,30]
[345478257,1734281709984,-3000.0,0.00031506,30]
[345478258,1734281710008,-3000.0,0.00031506,30]
[345478259,1734281710035,-3000.0,0.00031506,30]
[345478260,1734281710059,-3000.0,0.00031506,30]
[345478261,1734281710083,-3000.0,0.00031506,30]
[345478262,1734281710108,-3000.0,0.00031506,30]
[345478263,1734281710131,-3000.0,0.00031506,30]
[345478264,1734281710155,-3000.0,0.00031506,30]
[345478265,1734281710179,-3000.0,0.00031506,30]
[345478266,1734281710203,-3000.0,0.00031506,30]
[345478267,1734281710230,-3000.0,0.00031506,30]
[345478268,1734281710254,-3000.0,0.00031519,30]
[345478269,1734281710279,-3000.0,0.00031793,30]
[345478270,1734281710307,-1000.0,0.000319,120]
[345478271,1734281710436,-151.0,0.00031945,120]
[345478272,1734281710464,-1333.0,0.00031945,120]
[345478273,1734281710489,-2119.03427983,0.00032,120]
[345478274,1734281710515,-500.0,0.00032,120]
[345478275,1734281710540,-1000.0,0.00032,120]
[345478276,1734281710565,-35405.0,0.00032,120]
[345478277,1734281710590,-415.56,0.00032,30]
[345478278,1734281710615,-288.51289,0.00032,30]
[345478279,1734281710640,-3000.0,0.00032067,30]
[345478280,1734281710666,-3000.0,0.00032341,30]
[345478281,1734281710691,-2825.61,0.000324,30]
[345478282,1734281710716,-151.0,0.00032493,120]
[345478283,1734281710741,-13317.906,0.000325,120]
[345478284,1734281710767,-13317.907,0.000325,120]
[345478285,1734281710792,-13317.906,0.000325,120]
[345478286,1734281710817,-13317.907,0.000325,120]
[345478287,1734281710842,-13317.907,0.000325,120]
[345478288,1734281710867,-3000.0,0.00032615,30]
[345478289,1734281710895,-500.0,0.00032876,45]
[345478290,1734281710920,-500.0,0.00032876,49]
[345478291,1734281710945,-558.38858156,0.00032876,53]
[345478292,1734281724254,-954767.60322613,0.00030042,30]
[345478293,1734281724279,-4945.4335949,0.00030042,60]
[345478294,1734281724304,-762.6,0.00030042,120]
[345478295,1734281724330,-213.1233706,0.00030042,120]
[345478296,1734281724356,-1683.79395308,0.00030042,120]
[345478297,1734281724383,-67567.15034513,0.00030042,120]
[345478298,1734281724408,-5028.08,0.00030042,30]